bitfinex/quotes_ETHUSD_20250620
["timestamp","ask_amount","ask_price","bid_price","bid_amount"]
[1750406040159,0.42555673,2546.3,2546.2,11.85452125]
[1750406040355,0.79277923,2546.3,2546.2,11.85452125]
[1750406040753,0.79279559,2546.3,2546.2,11.85452125]
[1750406041069,0.79279559,2546.3,2546.2,11.85042125]
[1750406041070,0.42556298,2546.3,2546.2,11.85042125]
[1750406041373,0.42556298,2546.3,2546.2,12.68992125]
[1750406041671,0.79280427,2546.3,2546.2,12.68992125]
[1750406041870,0.42557166,2546.3,2546.2,12.68992125]
[1750406042678,0.79281659,2546.3,2546.2,12.68992125]
[1750406043149,10.58061249,2547.4,2546.9,3.92630943]
[1750406043349,10.62671882,2547.3,2546.9,3.92630943]
[1750406043550,0.58753655,2547.2,2546.8,3.98500444]
[1750406043853,0.62676667,2547.1,2546.7,3.92656124]
[1750406044051,0.36726404,2547.0,2546.8,3.92648464]
[1750406044287,0.58762348,2546.9,2546.8,3.92648464]
[1750406044598,0.58762276,2546.9,2546.6,11.79975842]
[1750406044749,0.58762276,2546.8,2546.7,7.855]
[1750406044951,0.58762276,2546.8,2546.7,11.78165017]
[1750406045151,0.5876261,2546.8,2546.7,11.78165017]
[1750406045384,0.58749334,2546.8,2546.7,11.78165017]
[1750406045585,0.58749279,2546.8,2546.7,11.78165017]
[1750406045854,0.58749279,2546.8,2546.7,11.84025017]
[1750406045992,0.58749279,2546.8,2546.7,11.78165017]
[1750406046165,0.58749279,2546.8,2546.7,11.76365017]
[1750406046674,0.58750741,2546.8,2546.7,11.76365017]
[1750406047059,10.58750741,2546.8,2546.7,7.837]
[1750406047265,10.3671454,2546.8,2546.7,11.76365017]
[1750406047465,10.58743264,2546.8,2546.7,11.76365017]
[1750406047885,10.58742003,2546.8,2546.7,11.76365017]
[1750406048216,10.58739766,2546.8,2546.7,11.76365017]
[1750406048396,10.58739766,2546.8,2546.7,7.837]
[1750406049116,10.58731175,2546.8,2546.7,11.76365017]
[1750406049696,10.58731007,2546.8,2546.7,11.78725017]
[1750406050268,10.5872587,2546.8,2546.7,11.78725017]
[1750406051163,0.5872587,2546.8,2546.7,11.78725017]
[1750406051470,0.5872587,2547.1,2546.7,7.802]
[1750406051676,0.62643791,2547.0,2546.9,3.92621394]
[1750406051883,0.03917921,2547.0,2546.9,7.777]
[1750406052097,10.25940122,2547.0,2546.9,11.76194182]
[1750406052264,10.58707717,2547.0,2546.9,11.76194182]
[1750406052465,10.58707731,2547.0,2546.9,11.70334182]
[1750406052659,10.58707731,2547.0,2546.9,7.777]
[1750406052660,10.58707678,2547.0,2546.9,7.777]
[1750406052858,0.58707678,2547.0,2546.9,3.92634182]
[1750406053061,10.62614467,2547.1,2546.8,11.70341998]
[1750406053283,10.0,2546.9,2546.8,7.777]
[1750406053498,10.58696546,2546.9,2546.7,11.69058186]
[1750406053822,10.58696546,2546.9,2546.7,3.92658186]
[1750406053823,0.03917921,2546.8,2546.7,3.92658186]
[1750406053964,10.55,2546.7,2546.3,0.0586]
[1750406054303,0.62622095,2546.6,2546.4,3.98563289]
[1750406054464,0.62625357,2546.6,2546.3,11.68320167]
[1750406054810,0.62625357,2546.6,2546.3,11.74180167]
[1750406055115,0.62625357,2546.6,2546.4,3.92709178]
[1750406055268,0.62625357,2546.6,2546.4,3.93119178]
[1750406055669,0.6262382,2546.6,2546.4,3.93119178]
[1750406055885,0.62619663,2546.6,2546.3,7.756]
[1750406056177,0.62619663,2546.6,2546.2,3.93137177]
[1750406056178,11.34281788,2546.6,2546.2,0.0041]
[1750406056380,0.58701742,2546.5,2546.2,11.66540023]
[1750406056714,0.03917921,2546.4,2546.3,3.93129187]
[1750406056862,0.03917921,2546.4,2546.3,0.0041]
[1750406057266,0.03917921,2546.4,2546.2,11.66143635]
[1750406057499,0.58755254,2546.5,2546.2,11.66143635]
[1750406057702,0.03917921,2546.4,2546.2,11.66143635]
[1750406057905,0.03917921,2546.4,2546.2,11.64843635]
[1750406058812,0.62673692,2546.5,2546.2,11.64843635]
[1750406058974,0.03917921,2546.5,2546.2,11.64843635]
[1750406059175,0.58755771,2546.4,2546.3,3.92726701]
[1750406059574,0.58791223,2546.4,2546.2,11.64843449]
[1750406059770,0.03917921,2546.3,2546.2,11.64843449]
[1750406060294,20.71650372,2546.7,2546.2,11.64843449]
[1750406060295,0.62709144,2546.4,2546.3,3.92726701]
[1750406060495,0.62709144,2546.6,2546.3,3.98436701]
[1750406060696,0.58791223,2546.5,2546.4,3.98421278]
[1750406061213,0.58811785,2546.5,2546.4,3.98421278]
[1750406061387,0.22054411,2546.5,2546.3,3.92719175]
[1750406061583,0.03917921,2546.5,2546.4,3.92711278]
[1750406061814,0.62735684,2546.5,2546.4,3.92711278]
[1750406062274,0.62749458,2546.5,2546.4,3.92711278]
[1750406063412,0.62749366,2546.5,2546.4,3.92711278]
[1750406063811,0.62757585,2546.5,2546.4,3.92711278]
[1750406064179,0.62757553,2546.5,2546.4,3.92711278]
[1750406064581,0.62760027,2546.5,2546.4,3.92711278]
[1750406064807,0.62761532,2546.5,2546.4,3.92711278]
[1750406065119,0.62761477,2546.5,2546.2,3.9844327]
[1750406065286,0.58843556,2546.4,2546.3,7.662]
[1750406065480,0.58845092,2546.4,2546.3,7.662]
[1750406066008,0.58845092,2546.4,2546.2,3.9844327]
[1750406066214,0.62763013,2546.3,2546.2,11.6124327]
[1750406066376,0.03917921,2546.3,2546.2,3.9844327]
[1750406066711,10.62763013,2546.4,2546.2,11.5523812]
[1750406066912,0.62763013,2546.3,2546.2,7.621]
[1750406067286,0.03917921,2546.3,2546.2,7.621]
[1750406067607,0.62766005,2546.3,2546.2,11.54842125]
[1750406067809,10.0,2546.2,2546.0,3.92764635]
[1750406068114,10.0,2546.2,2546.0,11.53864635]
[1750406068115,0.62771119,2546.1,2546.0,11.53864635]
[1750406068426,0.6277123,2546.1,2546.0,11.54414635]
[1750406068632,0.03917921,2546.1,2546.0,11.54414635]
[1750406068928,10.0,2546.6,2546.3,3.93276701]
[1750406068929,0.62770983,2546.4,2546.3,3.93276701]
[1750406069143,0.22069885,2546.4,2546.3,3.93276701]
[1750406069305,0.58849525,2546.4,2546.3,3.93276701]
[1750406070106,0.58847146,2546.4,2546.3,3.93276701]
[1750406070307,0.03917921,2546.9,2546.7,3.92665017]
[1750406070630,0.58850611,2546.8,2546.7,3.92665017]
[1750406071000,0.58848487,2546.8,2546.7,3.92665017]
[1750406071336,0.58848511,2546.8,2546.6,3.92671188]
[1750406071641,0.62765518,2546.7,2546.6,3.98381188]
[1750406071816,0.62765517,2546.7,2546.6,3.98381188]
[1750406072842,0.58848433,2546.7,2546.6,3.98381188]
[1750406073137,0.25986083,2547.4,2547.1,3.92588417]
[1750406073337,0.5884217,2547.3,2547.2,0.0571]
[1750406073637,0.5884217,2547.3,2547.2,3.98297939]
[1750406074043,0.62760091,2547.3,2547.2,3.98297939]
[1750406074340,0.5884217,2547.3,2547.2,3.98297939]
[1750406074646,0.32878984,2547.4,2547.3,3.92572527]
[1750406074935,0.32878984,2547.4,2547.3,11.53482527]
[1750406075942,0.03917921,2547.6,2547.4,3.92557117]
[1750406076145,0.58757605,2547.5,2547.4,3.98267117]
[1750406076536,0.22034098,2547.6,2547.5,3.92541707]
[1750406076736,0.22034098,2547.6,2547.5,11.51651707]
[1750406076941,0.22034098,2547.6,2547.5,13.5289654]
[1750406077448,1.2239916,2547.7,2547.6,3.98236299]
[1750406078715,1.2239916,2547.7,2547.5,3.92539423]
[1750406078910,10.03917921,2547.6,2547.3,3.98280992]
[1750406079146,0.03917921,2547.5,2547.3,3.98277082]
[1750406079752,6.82895589,2547.5,2547.3,3.98277082]
[1750406080119,6.82895589,2547.5,2547.3,3.92567082]
[1750406080751,16.82895589,2547.5,2547.4,3.92557117]
[1750406080956,16.78977668,2547.5,2547.4,3.92557117]
[1750406081770,10.0,2547.5,2547.4,3.98267117]
[1750406084233,10.0,2547.5,2547.4,5.523909]
[1750406085575,10.0,2547.5,2547.4,3.92557117]
[1750406087982,10.0,2547.5,2547.4,11.36757117]
[1750406089976,10.0,2547.5,2547.4,3.92557117]
[1750406090172,10.0,2547.5,2547.4,11.34857117]
[1750406094805,10.0,2547.5,2547.4,11.40537117]
[1750406095761,10.0,2547.5,2547.4,3.98237117]
[1750406096956,10.0,2547.5,2547.4,3.92557117]
[1750406097677,10.0,2547.5,2547.4,3.98237117]
[1750406099092,10.0,2547.5,2547.4,3.92557117]
[1750406099293,10.0,2547.5,2547.4,3.98237117]
[1750406099668,10.0,2547.5,2547.3,11.35138123]
[1750406100010,10.0,2547.5,2547.4,3.92557117]
[1750406100307,10.22013822,2547.5,2547.4,3.92557117]
[1750406100512,10.22013822,2547.5,2547.4,3.98237117]
[1750406100661,10.0,2547.5,2547.4,3.98237117]
[1750406101264,10.0,2547.5,2547.4,5.51007712]
[1750406101683,10.0,2547.5,2547.4,6.26397712]
[1750406102372,1.2239916,2547.7,2547.6,3.92526299]
[1750406102585,1.2239916,2547.7,2547.6,11.34631123]
[1750406102767,1.2239916,2547.7,2547.6,11.30706299]
[1750406102967,1.2239916,2547.7,2547.6,13.67352539]
[1750406103399,1.2239916,2547.7,2547.6,14.48952539]
[1750406104565,6.78977668,2549.0,2548.5,0.0568]
[1750406104786,7.04896206,2548.9,2548.7,3.92348661]
[1750406104987,0.03917921,2548.9,2548.8,3.92341494]
[1750406105304,16.78977668,2549.0,2548.9,3.92319385]
[1750406105481,10.22000273,2549.0,2548.9,3.93479385]
[1750406105674,0.8281,2549.6,2549.2,3.92278095]
[1750406105675,6.78977668,2549.4,2549.2,3.92278095]
[1750406105875,10.21997529,2549.3,2549.2,3.92278095]
[1750406106189,10.21996883,2549.3,2549.2,3.93438095]
[1750406106399,0.21996883,2549.3,2549.2,3.93438095]
[1750406106568,7.04892472,2549.5,2549.3,3.92251243]
[1750406106763,0.21996883,2549.4,2549.3,3.93411243]
[1750406107620,6.78977668,2549.6,2549.5,3.92233771]
[1750406107773,6.78977668,2549.6,2549.4,0.0116]
[1750406107963,10.03917921,2549.8,2549.4,3.93400768]
[1750406108180,0.7927,2549.9,2549.5,3.93391933]
[1750406108380,10.7927,2549.9,2549.6,3.92216948]
[1750406108570,6.82895589,2549.8,2549.6,3.93376948]
[1750406108772,6.82895589,2549.8,2549.6,3.9337772]
[1750406109002,6.82895589,2549.8,2549.6,0.0116]
[1750406109208,0.03917921,2549.8,2549.7,3.92203004]
[1750406109473,6.78977668,2550.3,2550.1,0.0116]
[1750406109722,4.72603433,2550.6,2549.6,0.8257]
[1750406109723,7.15704018,2550.2,2549.6,0.8257]
[1750406109908,6.78977668,2549.8,2549.6,0.8257]
[1750406110111,6.78977668,2549.8,2549.7,11.29583004]
[1750406110673,10.0,2549.9,2549.8,3.97862321]
[1750406110973,0.32808429,2550.2,2549.8,3.97861971]
[1750406111310,0.03917921,2550.1,2549.9,7.317]
[1750406111897,3.96060138,2550.1,2549.9,7.317]
[1750406112074,0.03917921,2550.1,2549.7,11.29382841]
[1750406112269,0.03917921,2550.1,2549.7,7.3718]
[1750406112697,0.03917921,2550.1,2549.8,3.92184902]
[1750406112912,0.03917921,2550.1,2549.8,0.0568]
[1750406113208,0.03917921,2550.2,2549.8,3.97859608]
[1750406113412,0.03917921,2550.2,2549.9,3.97850906]
[1750406113829,0.03917921,2550.2,2550.0,3.97830644]
[1750406114127,0.03917921,2550.3,2550.0,0.0568]
[1750406114324,0.03917921,2550.3,2549.9,0.0568]
[1750406114627,0.03917921,2550.3,2550.0,3.92156445]
[1750406114831,0.03917921,2550.3,2549.9,3.9784418]
[1750406115336,0.03917921,2550.3,2550.0,0.0568]
[1750406115491,0.03917921,2550.3,2550.1,3.92141394]
[1750406115824,0.03917921,2550.3,2550.0,0.0568]
[1750406116023,3.96031976,2550.3,2549.8,11.29261315]
[1750406116822,0.03917921,2550.5,2550.4,3.92092505]
[1750406117023,0.03917921,2550.5,2550.3,3.92102309]
[1750406117192,0.03917921,2550.5,2550.3,0.0568]
[1750406117989,0.03917921,2550.5,2550.3,3.97789895]
[1750406118243,0.03917921,2550.5,2550.4,3.92095357]
[1750406118397,0.8053,2550.6,2550.3,3.97787517]
[1750406118727,10.762,2550.9,2550.6,3.92064451]
[1750406119225,10.762,2550.9,2550.5,3.92071679]
[1750406119590,10.762,2550.9,2550.3,0.0568]
[1750406119591,0.762,2550.9,2550.7,0.0568]
[1750406119790,0.762,2550.9,2550.8,3.92033871]
[1750406120032,0.762,2550.9,2550.7,7.313]
[1750406120214,0.762,2550.9,2550.8,3.92033871]
[1750406120416,0.03917921,2551.0,2550.9,3.92018503]
[1750406120616,0.03917921,2551.0,2550.8,3.93157543]
[1750406121364,0.03917921,2551.0,2550.9,3.92018503]
[1750406121567,0.03917921,2551.1,2551.0,3.92002825]
[1750406122465,0.8109,2551.7,2551.0,7.311]
[1750406122673,0.85007921,2551.7,2551.6,3.91910957]
[1750406122824,0.8109,2551.7,2551.5,3.91916421]
[1750406123459,0.3672635,2551.6,2551.5,3.91916421]
[1750406124471,0.32808429,2551.6,2551.5,3.93046421]
[1750406125847,0.32808429,2551.6,2551.5,4.73196421]
[1750406126042,0.32808429,2551.6,2551.5,12.04096421]
[1750406126476,0.32808429,2551.6,2551.5,11.23856317]
[1750406126835,0.32808429,2551.6,2551.5,3.93056317]
[1750406127156,0.32808429,2551.6,2551.5,11.23856317]
[1750406127345,0.32808429,2551.6,2551.5,7.307]
[1750406127542,0.32808429,2551.6,2551.5,11.28846317]
[1750406127869,0.13213481,2551.8,2551.6,3.91904868]
[1750406128051,0.0929556,2551.8,2551.6,3.91904868]
[1750406128367,0.13213481,2551.8,2551.5,3.91915415]
[1750406128871,0.13213481,2551.8,2551.6,3.98117041]
[1750406129249,0.0929556,2551.8,2551.6,3.98117041]
[1750406129437,0.0929556,2551.8,2551.7,3.98115599]
[1750406130786,0.0929556,2551.8,2551.7,5.58201863]
[1750406131352,0.0929556,2551.8,2551.7,5.62120524]
[1750406132165,0.0929556,2551.8,2551.7,5.58201863]
[1750406132379,0.0929556,2551.8,2551.7,5.6212013]
[1750406132533,0.0929556,2551.8,2551.7,6.4257013]
[1750406132736,0.0929556,2551.8,2551.7,6.38651863]
[1750406132968,0.0929556,2551.8,2551.7,6.42569733]
[1750406133176,0.0929556,2551.8,2551.7,6.38651863]
[1750406133345,0.0929556,2551.8,2551.7,15.89651863]
[1750406133944,0.0929556,2551.8,2551.7,6.38651863]
[1750406134158,0.0929556,2551.8,2551.7,13.68851863]
[1750406134354,0.0929556,2551.8,2551.7,6.38651863]
[1750406134582,0.0929556,2551.8,2551.7,15.89551863]
[1750406135267,0.0929556,2551.8,2551.7,6.38651863]
[1750406135463,0.0929556,2551.8,2551.7,13.68851863]
[1750406136357,0.0929556,2551.8,2551.7,13.68651863]
[1750406136747,0.0929556,2551.8,2551.7,5.58201863]
[1750406136944,0.0929556,2551.8,2551.4,0.0622]
[1750406137150,0.0929556,2551.8,2550.6,0.39822018]
[1750406137151,0.8058,2551.4,2550.8,3.92024179]
[1750406137447,0.03917921,2551.3,2551.1,3.91984938]
[1750406137867,0.25739746,2551.3,2551.0,3.98216534]
[1750406138046,10.0,2551.7,2551.2,5.21961734]
[1750406138246,0.2574017,2551.6,2551.3,4.4414538]
[1750406138443,0.21822249,2551.6,2551.5,3.98146317]
[1750406138677,0.21819483,2551.7,2551.5,3.98131597]
[1750406138878,0.35032964,2551.8,2551.5,3.98131597]
[1750406139091,0.35032162,2551.8,2551.6,3.91897213]
[1750406139392,0.31114241,2551.8,2551.7,3.98115599]
[1750406139888,0.0929556,2551.8,2551.7,3.98115599]
[1750406140663,0.42103989,2551.8,2551.7,4.84704096]
[1750406140866,0.42103989,2551.8,2551.7,4.80785599]
[1750406141189,0.42103989,2551.8,2551.7,12.10585599]
[1750406141365,0.42103989,2551.8,2551.7,13.86033262]
[1750406142195,0.42103989,2551.8,2551.7,13.85933262]
[1750406144073,0.0929556,2551.8,2551.7,13.85933262]
[1750406145311,0.0929556,2551.8,2551.7,13.02963262]
[1750406145811,0.0929556,2551.8,2551.7,5.73563262]
[1750406145989,0.0929556,2551.8,2551.7,13.02963262]
[1750406146357,0.31191798,2551.8,2551.7,13.02963262]
[1750406146758,0.0929556,2551.8,2551.7,13.02963262]
[1750406148602,0.31239704,2551.8,2551.7,13.02963262]
[1750406148808,0.31239704,2551.8,2551.7,5.73563262]
[1750406149104,0.31239704,2551.8,2551.7,11.27315599]
[1750406149258,0.31239704,2551.8,2551.7,11.27215599]
[1750406149457,0.3124026,2551.8,2551.7,11.27215599]
[1750406150003,0.0929556,2551.8,2551.7,11.27215599]
[1750406150166,0.3124401,2551.8,2551.7,11.27215599]
[1750406150372,0.31243959,2551.8,2551.7,13.0119688]
[1750406150570,0.31243958,2551.8,2551.7,13.0119688]
[1750406151593,1.04556508,2551.8,2551.7,13.0119688]
[1750406151984,0.31243958,2551.8,2551.7,13.0119688]
[1750406152192,0.31243958,2551.8,2551.7,13.8126688]
[1750406152515,0.31287544,2551.8,2551.7,13.8126688]
[1750406152821,0.31283837,2551.8,2551.7,13.8126688]
[1750406153122,0.0929556,2551.8,2551.7,13.8126688]
[1750406153795,0.0929556,2551.8,2551.7,16.0166688]
[1750406154855,0.0929556,2551.8,2551.7,16.0156688]
[1750406155061,0.31290032,2551.8,2551.7,6.5216688]
[1750406155260,0.0929556,2551.8,2551.7,13.0069688]
[1750406155492,0.31289976,2551.8,2551.7,13.0069688]
[1750406155700,0.0929556,2551.8,2551.7,13.0069688]
[1750406155873,0.31290578,2551.8,2551.7,13.0069688]
[1750406156983,0.31290707,2551.8,2551.7,13.0069688]
[1750406157190,0.31290787,2551.8,2551.7,13.0069688]
[1750406157375,0.67949498,2551.8,2551.7,12.9427688]
[1750406158621,0.67968024,2551.8,2551.7,12.9427688]
[1750406158776,0.31297734,2551.8,2551.7,12.9427688]
[1750406159714,0.67986196,2551.8,2551.7,12.9427688]
[1750406159914,0.67986196,2551.8,2551.7,13.0025688]
[1750406160613,0.31297734,2551.8,2551.7,13.7942688]
[1750406160996,0.67985597,2551.8,2551.7,13.7942688]
[1750406161188,0.31297734,2551.8,2551.7,13.7942688]
[1750406161388,0.0929556,2551.8,2551.7,13.7942688]
[1750406161713,0.3130764,2551.8,2551.7,13.7942688]
[1750406161915,0.0929556,2551.8,2551.7,13.7942688]
[1750406162347,0.3130764,2551.8,2551.7,13.7942688]
[1750406162635,0.0929556,2551.8,2551.7,13.7942688]
[1750406163502,0.3130807,2551.8,2551.7,13.7942688]
[1750406164108,0.3131272,2551.8,2551.7,13.7942688]
[1750406164309,0.0929556,2551.8,2551.7,13.7942688]
[1750406168256,0.0929556,2551.8,2551.7,13.7842688]
[1750406169199,0.0929556,2551.8,2551.7,12.9345688]
[1750406169856,0.0929556,2551.8,2551.7,13.7330688]
[1750406170739,0.0929556,2551.8,2551.7,6.4572688]
[1750406171039,0.0929556,2551.8,2551.7,11.18995599]
[1750406171239,0.0929556,2551.8,2551.7,11.24975599]
[1750406173728,0.0929556,2551.8,2551.7,3.97875599]
[1750406173928,0.0929556,2551.8,2551.7,11.18695599]
[1750406174461,0.0929556,2551.8,2551.7,11.24675599]
[1750406176247,0.0929556,2551.8,2551.7,3.91895599]
[1750406176560,0.0929556,2551.8,2551.6,3.91897213]
[1750406176561,0.0929556,2551.8,2551.6,3.91899519]
[1750406176764,0.8995556,2551.8,2551.0,2.9775]
[1750406176965,0.25939733,2551.7,2551.5,3.91923893]
[1750406177146,0.25939733,2551.7,2551.5,11.18423893]
[1750406177387,0.25939733,2551.7,2551.4,3.91932418]
[1750406177548,0.25939733,2551.7,2551.5,3.91924166]
[1750406177757,0.25939733,2551.7,2551.6,3.91910957]
[1750406177955,0.62606391,2551.7,2551.6,3.91910957]
[1750406178584,0.62606413,2551.7,2551.6,3.91910957]
[1750406178726,0.22008177,2551.7,2551.6,3.91910957]
[1750406178926,0.58688018,2551.7,2551.6,3.91901921]
[1750406179123,0.22007767,2551.7,2551.6,3.91901921]
[1750406179380,0.58687811,2551.7,2551.6,3.91901921]
[1750406179531,0.22007767,2551.7,2551.6,3.91901921]
[1750406179732,0.22006232,2551.7,2551.6,3.91901921]
[1750406180080,0.22006232,2551.7,2551.5,3.919188]
[1750406180233,0.22006232,2551.7,2551.6,3.91910957]
[1750406180433,0.25924153,2551.7,2551.6,3.91910957]
[1750406180634,0.22006232,2551.7,2551.6,3.91910957]
[1750406180860,0.8995556,2551.8,2551.7,3.91895599]
[1750406181064,1.48615528,2551.8,2551.7,3.91895599]
[1750406181268,1.48616741,2551.8,2551.7,3.91895599]
[1750406181474,1.48616807,2551.8,2551.7,3.91895599]
[1750406181771,1.48616618,2551.8,2551.7,3.91895599]
[1750406182332,1.48616225,2551.8,2551.7,3.91895599]
[1750406182526,1.48612727,2551.8,2551.7,3.91895599]
[1750406183173,1.48612284,2551.8,2551.7,3.91895599]
[1750406183702,1.48612278,2551.8,2551.7,3.91895599]
[1750406184048,1.48612273,2551.8,2551.7,3.91895599]
[1750406184581,1.48606361,2551.8,2551.7,3.91895599]
[1750406185647,0.67942895,2551.8,2551.7,3.91895599]
[1750406186297,0.67940753,2551.8,2551.7,3.91895599]
[1750406186463,0.31287474,2551.8,2551.5,3.91919328]
[1750406186670,0.0929556,2551.8,2551.6,3.9190914]
[1750406187002,0.13213481,2551.8,2551.6,3.9190914]
[1750406187183,0.35205743,2551.8,2551.4,11.1733519]
[1750406187416,0.35205743,2551.8,2551.6,3.91910675]
[1750406187581,0.7637,2551.7,2551.5,3.91918043]
[1750406187906,0.7637,2551.7,2551.0,2.9747]
[1750406187907,0.25909929,2551.6,2551.0,2.9747]
[1750406188051,0.25909929,2551.6,2551.3,3.91948696]
[1750406188052,0.62564283,2551.6,2551.3,3.91948696]
[1750406188245,0.62564283,2551.6,2551.3,3.91947805]
[1750406188450,0.62564283,2551.6,2551.2,5.21972405]
[1750406188720,10.8299,2551.3,2551.2,1.3]
[1750406188888,15.88597515,2551.3,2551.2,1.3]
[1750406190006,15.88600591,2551.3,2551.2,1.3]
[1750406190203,0.7858,2551.1,2550.7,3.92041688]
[1750406190507,0.62572184,2551.0,2550.8,3.92027412]
[1750406191405,0.21952299,2551.0,2550.9,3.92018503]
[1750406192114,0.82497921,2551.1,2550.8,3.92027917]
[1750406192265,0.21952208,2551.0,2550.5,0.8154]
[1750406192465,0.2195203,2551.0,2550.9,3.92018503]
[1750406192963,0.82497921,2551.1,2550.9,3.92018503]
[1750406193276,0.82497921,2551.1,2550.8,3.92024963]
[1750406193502,0.82497921,2551.1,2550.9,3.92017976]
[1750406193683,0.03917921,2551.0,2550.9,3.92017976]
[1750406194218,0.7858,2551.1,2551.0,3.92003136]
[1750406194398,0.21927716,2551.1,2551.0,3.92003136]
[1750406194585,0.58473594,2551.2,2551.1,3.91984273]
[1750406194970,0.58473594,2551.2,2551.0,3.91996299]
[1750406195307,0.3654619,2551.2,2551.0,3.91996299]
[1750406195512,0.81077921,2551.3,2551.0,3.91996299]
[1750406196329,0.58482596,2551.2,2551.0,3.91996299]
[1750406196535,0.58482678,2551.2,2550.9,3.98230777]
[1750406196833,0.36551623,2551.2,2550.9,3.98230777]
[1750406197028,0.2193106,2551.2,2550.9,3.98230777]
[1750406197398,0.2193106,2551.2,2550.9,3.92010777]
[1750406197639,10.0,2551.1,2550.8,3.92026491]
[1750406197794,0.36552515,2551.2,2550.9,3.92004827]
[1750406197995,0.58484089,2551.2,2550.9,3.92004827]
[1750406198328,0.21931574,2551.2,2550.9,3.92004827]
[1750406198532,0.58484022,2551.2,2550.9,3.92004827]
[1750406198745,0.58484156,2551.2,2550.9,3.92004827]
[1750406199026,0.03917921,2551.1,2550.9,3.92004827]
[1750406199526,0.4048468,2551.1,2550.9,3.92004827]
[1750406199826,0.03917921,2551.1,2550.9,3.92004827]
[1750406200197,0.03917921,2551.1,2550.7,3.98263744]
[1750406200527,0.03917921,2551.1,2551.0,3.92003136]
[1750406201129,0.21931852,2551.2,2551.1,3.98207769]
[1750406201531,0.21930499,2551.2,2551.1,3.98207769]
[1750406201701,0.21930497,2551.2,2551.1,3.98207769]
[1750406202462,10.8065,2551.6,2551.2,3.91960082]
[1750406202608,0.62406333,2551.5,2551.2,3.91960082]
[1750406202806,0.62406333,2551.5,2551.2,3.98180082]
[1750406203012,0.62406333,2551.5,2551.3,3.98174605]
[1750406203308,0.62406333,2551.5,2551.3,0.0622]
[1750406203714,0.36561127,2551.4,2551.3,0.0622]
[1750406203924,0.62412202,2551.5,2551.3,0.0622]
[1750406204107,0.62412202,2551.5,2551.3,3.98174966]
[1750406204447,0.62415695,2551.5,2551.3,0.0622]
[1750406204609,0.62415695,2551.5,2551.3,3.98169835]
[1750406204949,0.62415695,2551.5,2551.3,0.0622]
[1750406205337,0.36576989,2551.4,2551.3,1.3622]
[1750406205652,0.62441102,2551.5,2551.3,1.3622]
[1750406206312,0.62441102,2551.5,2551.3,5.28169227]
[1750406206313,0.62446278,2551.5,2551.3,5.28169227]
[1750406206729,0.62445548,2551.5,2551.3,5.28169227]
[1750406206932,0.62445455,2551.5,2551.3,5.28169227]
[1750406207747,0.25868208,2551.5,2551.3,5.28169227]
[1750406208046,0.62451766,2551.5,2551.3,5.28169227]
[1750406208247,0.25868055,2551.5,2551.3,5.28169227]
[1750406208422,0.62451598,2551.5,2551.3,1.3]
[1750406208949,0.25868055,2551.5,2551.3,1.3]
[1750406209126,0.62462687,2551.5,2551.3,1.3]
[1750406210051,10.94399221,2551.5,2551.3,1.3]
[1750406210229,0.58548706,2551.4,2551.3,1.3]
[1750406210928,0.58557522,2551.4,2551.3,1.3]
[1750406211132,10.58557229,2551.4,2551.3,1.3]
[1750406212054,10.58556805,2551.4,2551.3,1.3]
[1750406213766,10.58569745,2551.4,2551.3,1.3]
[1750406213962,10.0,2551.4,2551.3,5.21957041]
[1750406214139,10.58590158,2551.4,2551.3,1.3]
[1750406214339,10.58590158,2551.4,2551.3,5.21957041]
[1750406214554,10.58590158,2551.4,2551.3,1.3]
[1750406214764,10.58590508,2551.4,2551.3,1.3]
[1750406215059,10.58621495,2551.4,2551.3,1.3]
[1750406216019,10.58642198,2551.4,2551.3,1.3]
[1750406216236,11.9357254,2551.4,2551.3,1.3]
[1750406216442,0.55,2551.3,2550.9,3.97720981]
[1750406216725,0.25908748,2551.2,2551.0,3.91996443]
[1750406216926,0.62561843,2551.2,2551.0,3.91996443]
[1750406217127,0.36652693,2551.1,2551.0,3.92001908]
[1750406217328,0.62561441,2551.2,2551.0,3.92001908]
[1750406217527,10.62561441,2551.2,2551.0,3.92001908]
[1750406217730,0.5864352,2551.1,2550.9,3.92010648]
[1750406217929,0.25908748,2551.0,2550.9,3.92010648]
[1750406218166,0.25908748,2551.0,2550.9,3.97720648]
[1750406219075,0.25908748,2551.0,2549.5,4.71]
[1750406219076,1.03510827,2551.0,2550.7,0.0571]
[1750406219267,0.85437921,2551.0,2550.9,3.92018503]
[1750406219462,1.44155947,2551.0,2550.9,3.92018503]
[1750406219776,0.58717137,2551.0,2550.9,3.97719813]
[1750406219944,0.58717132,2551.0,2550.9,3.97719813]
[1750406220145,0.25936847,2551.0,2550.9,3.97719813]
[1750406220446,0.58717323,2551.0,2550.9,3.97719813]
[1750406220648,0.62635087,2551.0,2550.9,3.97719813]
[1750406220871,0.62635124,2551.0,2550.9,3.97719813]
[1750406221070,0.62635124,2551.0,2550.9,3.97728503]
[1750406221578,0.58724563,2551.0,2550.9,3.97728503]
[1750406222384,10.4061997,2551.3,2551.2,3.92792405]
[1750406222543,10.58721995,2551.3,2551.2,3.92792405]
[1750406222946,0.58722007,2551.3,2551.2,3.92792405]
[1750406223145,0.2202076,2551.3,2551.2,3.92792405]
[1750406224178,10.2202076,2551.3,2551.0,3.91997372]
[1750406224411,0.25938681,2551.2,2551.0,3.91997372]
[1750406224683,0.25938681,2551.2,2551.0,3.91994432]
[1750406224684,0.22026893,2551.1,2551.0,3.91994432]
[1750406224897,0.22026893,2551.1,2551.0,3.97704432]
[1750406225260,0.22026916,2551.1,2551.0,3.97704432]
[1750406225786,0.22028731,2551.1,2551.0,3.97704432]
[1750406226080,0.22028842,2551.1,2551.0,3.97704432]
[1750406226295,0.22028848,2551.1,2551.0,3.97704432]
[1750406226459,0.22028893,2551.1,2551.0,3.97704432]
[1750406226663,0.22028747,2551.1,2551.0,3.97704432]
[1750406228091,0.22028744,2551.1,2551.0,3.97713136]
[1750406228384,0.22028744,2551.1,2550.9,3.92006622]
[1750406228549,0.22028744,2551.0,2550.9,3.92006622]
[1750406228750,0.22030531,2551.0,2550.9,3.97716622]
[1750406229150,0.03917921,2551.3,2551.0,3.92002857]
[1750406229384,0.22030604,2551.2,2551.0,3.92002857]
[1750406229589,0.22030604,2551.1,2551.0,3.92002857]
[1750406230485,0.22035047,2551.1,2551.0,3.92002857]
[1750406230890,0.22035133,2551.1,2551.0,3.92822857]
[1750406231066,0.03917921,2551.3,2551.1,3.91987523]
[1750406231247,0.220351,2551.2,2551.1,3.91987523]
[1750406232057,0.220351,2551.2,2551.1,3.92807523]
[1750406233288,0.22034672,2551.2,2551.1,3.92807523]
[1750406233584,0.22034676,2551.2,2550.8,0.8008]
[1750406233747,0.22034676,2551.1,2551.0,3.92003136]
[1750406233951,0.22034676,2551.1,2551.0,3.92823136]
[1750406234147,0.03917921,2551.3,2551.1,3.91986636]